[Event "44th Chess Olympiad Open 2022"]
[Site "Chennai"]
[Date "2022.08.01"]
[Round "4.84"]
[White "Bridet, Robert"]
[Black "Montel Jr, Cyril Tomas"]
[Result "0-1"]
[WhiteElo "1497"]
[BlackElo "1827"]
[Annotator "NA RC"]
[PlyCount "74"]
[EventDate "2022.??.??"]
[TimeControl "60"]

1. e4 {[%emt 0:00:11]} c5 {[%emt 0:00:05]} 2. Bc4 {[%emt 0:00:32]} g6 {[%emt 0:
00:00]} 3. Nf3 {[%emt 0:00:22]} Bg7 {[%emt 0:00:18]} 4. Nc3 {[%emt 0:01:05]}
Nc6 {[%emt 0:01:07]} 5. a3 {[%emt 0:00:17]} Nf6 {[%emt 0:00:51]} 6. d3 {
[%emt 0:00:33]} O-O {[%emt 0:00:06]} 7. O-O {[%emt 0:00:13]} d6 {[%emt 0:00:52]
} 8. h3 {[%emt 0:01:04]} a6 {[%emt 0:00:05]} 9. Bg5 {[%emt 0:04:04]} b5 {
[%emt 0:00:15]} 10. Ba2 {[%emt 0:01:14]} h6 {[%emt 0:02:57]} 11. Be3 {[%emt 0:
00:00]} Bb7 {[%emt 0:00:09]} 12. Nh4 {[%emt 0:01:01]} Kh7 {[%emt 0:00:10]} 13.
f4 {[%emt 0:00:52]} e6 {[%emt 0:00:25]} 14. Qe1 {[%emt 0:05:23]} Nd4 {[%emt 0:
00:00]} 15. Qf2 {[%emt 0:05:41]} Nd7 {[%emt 0:02:51]} 16. f5 {[%emt 0:04:18]}
exf5 {[%emt 0:06:36]} 17. exf5 {[%emt 0:01:20]} g5 {[%emt 0:05:53]} 18. Nf3 {
[%emt 0:05:04]} Bxf3 {[%emt 0:03:02]} 19. gxf3 {[%emt 0:00:10]} Nxf5 {[%emt 0:
00:00]} 20. Bd5 {[%emt 0:01:12]} Nxe3 {[%emt 0:00:39]} 21. Bxa8 {[%emt 0:01:55]
} Qxa8 {[%emt 0:00:19]} 22. Rfe1 {[%emt 0:02:37]} Bd4 {[%emt 0:02:27]} 23. Rxe3
{[%emt 0:02:17]} Re8 {[%emt 0:09:44]} 24. Nd1 {[%emt 0:00:50]} Ne5 {[%emt 0:00:
00]} 25. Kf1 {[%emt 0:05:27]} Bxe3 {[%emt 0:06:02]} 26. Nxe3 {[%emt 0:01:42]}
Qxf3 {[%emt 0:00:08]} 27. Qxf3 {[%emt 0:01:33]} Nxf3 {[%emt 0:00:08]} 28. Kf2 {
[%emt 0:00:22]} Nd4 {[%emt 0:00:41]} 29. c3 {[%emt 0:01:24]} Rxe3 {[%emt 0:00:
00]} 30. cxd4 {[%emt 0:00:15]} Rxd3 {[%emt 0:00:09]} 31. dxc5 {[%emt 0:00:17]}
dxc5 {[%emt 0:00:09]} 32. Kg2 {[%emt 0:02:21]} Rd2+ {[%emt 0:03:31]} 33. Kg3 {
[%emt 0:00:07]} Rxb2 {[%emt 0:00:12]} 34. Rf1 {[%emt 0:00:16]} Kg7 {[%emt 0:00:
00]} 35. Rf3 {[%emt 0:00:30]} c4 {[%emt 0:00:06]} 36. Kg4 {[%emt 0:00:51]} Kg6
{[%emt 0:00:40]} 37. Kg3 {[%emt 0:01:33]} Rb3 {[%emt 0:00:30]} 0-1

[Event "44th Chess Olympiad Open 2022"]
[Site "Chennai"]
[Date "2022.08.01"]
[Round "4.84"]
[White "Thomas, Larry"]
[Black "Cabunagan, Tito"]
[Result "1-0"]
[WhiteElo "1317"]
[BlackElo "1706"]
[Annotator "NA RC"]
[PlyCount "97"]
[EventDate "2022.??.??"]
[TimeControl "60"]

1. d4 {[%emt 0:01:16]} d5 {[%emt 0:00:09]} 2. Nc3 {[%emt 0:00:06]} c6 {[%emt 0:
00:00]} 3. Bf4 {[%emt 0:00:17]} Bf5 {[%emt 0:00:12]} 4. e3 {[%emt 0:00:35]} e6
{[%emt 0:00:01]} 5. Bd3 {[%emt 0:02:25]} Bxd3 {[%emt 0:00:28]} 6. Qxd3 {
[%emt 0:00:24]} Bd6 {[%emt 0:00:01]} 7. Bg3 {[%emt 0:00:53]} Bxg3 {[%emt 0:00:
00]} 8. hxg3 {[%emt 0:00:35]} h6 {[%emt 0:00:05]} 9. Nf3 {[%emt 0:01:30]} Nd7 {
[%emt 0:00:01]} 10. a4 {[%emt 0:03:43]} a6 {[%emt 0:00:15]} 11. e4 {[%emt 0:00:
00]} dxe4 {[%emt 0:00:48]} 12. Nxe4 {[%emt 0:00:31]} Ndf6 {[%emt 0:00:34]} 13.
c3 {[%emt 0:10:17]} Nxe4 {[%emt 0:00:10]} 14. Qxe4 {[%emt 0:00:16]} Nf6 {
[%emt 0:00:01]} 15. Qc2 {[%emt 0:04:08]} Qd5 {[%emt 0:00:10]} 16. O-O {[%emt 0:
00:00]} O-O {[%emt 0:00:35]} 17. Rfe1 {[%emt 0:00:25]} Rfe8 {[%emt 0:01:22]}
18. Rad1 {[%emt 0:01:26]} Rab8 {[%emt 0:00:31]} 19. b4 {[%emt 0:02:10]} b5 {
[%emt 0:01:08]} 20. a5 {[%emt 0:00:28]} Qf5 {[%emt 0:01:38]} 21. Qxf5 {[%emt 0:
00:00]} exf5 {[%emt 0:00:01]} 22. Ne5 {[%emt 0:01:05]} Rbc8 {[%emt 0:00:21]}
23. f3 {[%emt 0:02:28]} Re6 {[%emt 0:00:12]} 24. Kf2 {[%emt 0:00:54]} Rce8 {
[%emt 0:00:00]} 25. Nd3 {[%emt 0:01:31]} Rxe1 {[%emt 0:00:17]} 26. Rxe1 {
[%emt 0:00:19]} Rxe1 {[%emt 0:00:02]} 27. Kxe1 {[%emt 0:00:14]} Nd5 {[%emt 0:
00:00]} 28. Kd2 {[%emt 0:01:54]} f6 {[%emt 0:00:10]} 29. Nc5 {[%emt 0:01:39]}
Nc7 {[%emt 0:00:01]} 30. Nd7 {[%emt 0:01:02]} Kf7 {[%emt 0:01:19]} 31. Nb8 {
[%emt 0:01:54]} Ke6 {[%emt 0:00:09]} 32. Nxc6 {[%emt 0:00:28]} Kd7 {[%emt 0:00:
00]} 33. Nb8+ {[%emt 0:04:51]} Kc8 {[%emt 0:00:01]} 34. Nc6 {[%emt 0:00:29]}
Kd7 {[%emt 0:00:02]} 35. d5 {[%emt 0:09:10]} Kd6 {[%emt 0:00:52]} 36. Nd4 {
[%emt 0:02:46]} g6 {[%emt 0:00:31]} 37. Ne6 {[%emt 0:05:00]} Nxd5 {[%emt 0:00:
00]} 38. Nc5 {[%emt 0:01:09]} Nc7 {[%emt 0:00:18]} 39. Kd3 {[%emt 0:00:55]} g5
{[%emt 0:03:53]} 40. Nb7+ {[%emt 0:03:01]} Ke5 {[%emt 0:02:00]} 41. c4 {
[%emt 0:32:12]} bxc4+ {[%emt 0:30:21]} 42. Kxc4 {[%emt 0:00:05]} Ne6 {[%emt 0:
00:00]} 43. Nc5 {[%emt 0:00:22]} Nc7 {[%emt 0:00:38]} 44. Nxa6 {[%emt 0:02:43]}
Nxa6 {[%emt 0:00:13]} 45. b5 {[%emt 0:00:04]} Nc7 {[%emt 0:01:29]} 46. b6 {
[%emt 0:00:03]} Ne8 {[%emt 0:00:53]} 47. Kc5 {[%emt 0:00:03]} Ke6 {[%emt 0:00:
00]} 48. a6 {[%emt 0:02:02]} Kd7 {[%emt 0:00:21]} 49. a7 {[%emt 0:00:31]} 1-0

[Event "44th Chess Olympiad Open 2022"]
[Site "Chennai"]
[Date "2022.08.01"]
[Round "4.86"]
[White "Van den Brink, Peter"]
[Black "Stratonowitsch, Andre"]
[Result "1-0"]
[WhiteElo "2167"]
[BlackElo "2142"]
[Annotator "RC"]
[PlyCount "113"]
[EventDate "2022.??.??"]
[TimeControl "60"]

1. c4 {[%emt 0:00:06]} e5 {[%emt 0:00:14]} 2. g3 {[%emt 0:00:16]} Nc6 {[%emt 0:
00:00]} 3. Nc3 {[%emt 0:01:25]} f5 {[%emt 0:00:17]} 4. Nf3 {[%emt 0:04:03]} Bb4
{[%emt 0:13:57]} 5. d4 {[%emt 0:09:45]} exd4 {[%emt 0:10:31]} 6. Nxd4 {[%emt 0:
00:00]} Nxd4 {[%emt 0:13:32]} 7. Qxd4 {[%emt 0:00:26]} Qf6 {[%emt 0:00:09]} 8.
Be3 {[%emt 0:14:28]} Qxd4 {[%emt 0:00:29]} 9. Bxd4 {[%emt 0:00:11]} Kf7 {
[%emt 0:00:05]} 10. a3 {[%emt 0:01:29]} Bxc3+ {[%emt 0:00:21]} 11. Bxc3 {
[%emt 0:00:07]} Nf6 {[%emt 0:00:02]} 12. Bg2 {[%emt 0:12:47]} Re8 {[%emt 0:00:
00]} 13. e3 {[%emt 0:02:29]} Ne4 {[%emt 0:01:11]} 14. Rc1 {[%emt 0:00:48]} b6 {
[%emt 0:00:39]} 15. O-O {[%emt 0:03:48]} Bb7 {[%emt 0:04:51]} 16. Rfd1 {
[%emt 0:02:43]} Re7 {[%emt 0:02:38]} 17. Bd4 {[%emt 0:14:43]} d6 {[%emt 0:00:
00]} 18. b4 {[%emt 0:01:32]} Rd8 {[%emt 0:04:10]} 19. c5 {[%emt 0:05:37]} dxc5
{[%emt 0:02:40]} 20. bxc5 {[%emt 0:00:47]} Bd5 {[%emt 0:04:20]} 21. h4 {
[%emt 0:10:15]} Red7 {[%emt 0:02:22]} 22. Rd3 {[%emt 0:03:03]} g6 {[%emt 0:00:
00]} 23. a4 {[%emt 0:03:46]} Ke6 {[%emt 0:04:50]} 24. Bf1 {[%emt 0:03:11]} g5 {
[%emt 0:06:22]} 25. hxg5 {[%emt 0:00:37]} Nxg5 {[%emt 0:00:16]} 26. Be2 {
[%emt 0:00:31]} Bf3 {[%emt 0:01:44]} 27. Kf1 {[%emt 0:01:02]} Bxe2+ {[%emt 0:
00:00]} 28. Kxe2 {[%emt 0:00:02]} Ne4 {[%emt 0:00:02]} 29. cxb6 {[%emt 0:01:50]
} axb6 {[%emt 0:00:24]} 30. Rh1 {[%emt 0:00:52]} Rg8 {[%emt 0:00:31]} 31. Rb3 {
[%emt 0:01:07]} f4 {[%emt 0:04:18]} 32. gxf4 {[%emt 0:00:26]} Rg2 {[%emt 0:00:
00]} 33. Kf3 {[%emt 0:00:44]} Nd2+ {[%emt 0:01:12]} 34. Kxg2 {[%emt 0:00:04]}
Nxb3 {[%emt 0:00:05]} 35. Rh6+ {[%emt 0:00:18]} Kd5 {[%emt 0:00:35]} 36. Bh8 {
[%emt 0:01:06]} Nc5 {[%emt 0:00:20]} 37. f5 {[%emt 0:00:24]} Nxa4 {[%emt 0:00:
00]} 38. e4+ {[%emt 0:00:01]} Kxe4 {[%emt 0:01:30]} 39. Rh4+ {[%emt 0:00:01]}
Kxf5 {[%emt 0:00:11]} 40. Rxa4 {[%emt 0:00:02]} b5 {[%emt 0:00:57]} 41. Rb4 {
[%emt 0:32:36]} c6 {[%emt 0:30:55]} 42. Kg3 {[%emt 0:00:00]} Rd6 {[%emt 0:00:
00]} 43. Rf4+ {[%emt 0:00:00]} Kg6 {[%emt 0:00:00]} 44. Rg4+ {[%emt 0:00:00]}
Kf5 {[%emt 0:00:00]} 45. Rh4 {[%emt 0:00:00]} h6 {[%emt 0:00:00]} 46. Bd4 {
[%emt 0:00:00]} Kg6 {[%emt 0:00:00]} 47. Be3 {[%emt 0:00:00]} Kg7 {[%emt 0:00:
00]} 48. Re4 {[%emt 0:00:00]} Kg6 {[%emt 0:00:00]} 49. Kg4 {[%emt 0:00:00]} Rf6
{[%emt 0:00:58]} 50. f4 {[%emt 0:00:25]} Rf5 {[%emt 0:02:31]} 51. Re6+ {
[%emt 0:00:39]} Rf6 {[%emt 0:00:13]} 52. f5+ {[%emt 0:00:22]} Kf7 {[%emt 0:00:
00]} 53. Rxf6+ {[%emt 0:00:47]} Kxf6 {[%emt 0:00:02]} 54. Bxh6 {[%emt 0:00:07]}
c5 {[%emt 0:00:47]} 55. Be3 {[%emt 0:00:12]} c4 {[%emt 0:00:59]} 56. Bd4+ {
[%emt 0:00:02]} Kf7 {[%emt 0:00:04]} 57. Bc3 {[%emt 0:00:04]} 1-0

[Event "44th Chess Olympiad Open 2022"]
[Site "Chennai"]
[Date "2022.08.01"]
[Round "4.86"]
[White "Ramachandran, R..."]
[Black "Antonio, Kyell-Jean"]
[Result "0-1"]
[WhiteElo "1994"]
[BlackElo "1497"]
[Annotator "NA RC"]
[PlyCount "52"]
[EventDate "2022.??.??"]
[TimeControl "60"]

1. d4 {[%emt 0:00:13]} d5 {[%emt 0:00:26]} 2. c4 {[%emt 0:00:23]} c6 {[%emt 0:
00:00]} 3. Nc3 {[%emt 0:00:46]} e6 {[%emt 0:00:00]} 4. Bf4 {[%emt 0:01:41]} Nf6
{[%emt 0:00:00]} 5. e3 {[%emt 0:01:14]} Nbd7 {[%emt 0:00:00]} 6. Nf3 {[%emt 0:
00:00]} Be7 {[%emt 0:00:21]} 7. Bd3 {[%emt 0:02:07]} dxc4 {[%emt 0:00:03]} 8.
Bxc4 {[%emt 0:01:39]} b5 {[%emt 0:00:03]} 9. Bd3 {[%emt 0:02:57]} Bb7 {[%emt 0:
00:00]} 10. Qc2 {[%emt 0:06:18]} h6 {[%emt 0:01:21]} 11. h3 {[%emt 0:00:42]} a6
{[%emt 0:00:12]} 12. b3 {[%emt 0:03:12]} Rc8 {[%emt 0:00:59]} 13. e4 {[%emt 0:
00:00]} c5 {[%emt 0:04:11]} 14. Be3 {[%emt 0:05:42]} cxd4 {[%emt 0:05:03]} 15.
Nxd4 {[%emt 0:07:21]} b4 {[%emt 0:05:08]} 16. Bd2 {[%emt 0:01:35]} bxc3 {
[%emt 0:01:23]} 17. Bxc3 {[%emt 0:00:29]} Bb4 {[%emt 0:02:24]} 18. Ne2 {
[%emt 0:01:04]} Ne5 {[%emt 0:02:50]} 19. Rd1 {[%emt 0:01:15]} Bxc3+ {[%emt 0:
00:00]} 20. Nxc3 {[%emt 0:01:28]} Qa5 {[%emt 0:00:03]} 21. Bc4 {[%emt 0:02:08]}
Nxc4 {[%emt 0:00:48]} 22. bxc4 {[%emt 0:04:27]} Rxc4 {[%emt 0:00:06]} 23. Qd3 {
[%emt 0:04:03]} Qxc3+ {[%emt 0:00:15]} 24. Rd2 {[%emt 0:01:05]} Qxd3 {[%emt 0:
00:00]} 25. Rxd3 {[%emt 0:00:41]} Rc1+ {[%emt 0:00:04]} 26. Rd1 {[%emt 0:00:57]
} Rxd1+ {[%emt 0:00:04]} 0-1

[Event "44th Chess Olympiad Open 2022"]
[Site "Chennai"]
[Date "2022.08.01"]
[Round "4.86"]
[White "Stetsenko, Ilya"]
[Black "Pillay, Ragul"]
[Result "1/2-1/2"]
[WhiteElo "1683"]
[BlackElo "1341"]
[Annotator "NA RC"]
[PlyCount "100"]
[EventDate "2022.??.??"]
[TimeControl "60"]

1. d4 {[%emt 0:00:05]} Nf6 {[%emt 0:00:08]} 2. c4 {[%emt 0:00:12]} e6 {[%emt 0:
00:00]} 3. Nf3 {[%emt 0:00:14]} d5 {[%emt 0:00:34]} 4. Nc3 {[%emt 0:00:42]} Bb4
{[%emt 0:01:51]} 5. Qa4+ {[%emt 0:01:26]} Nc6 {[%emt 0:01:31]} 6. e3 {[%emt 0:
00:00]} Ne4 {[%emt 0:02:58]} 7. Bd2 {[%emt 0:00:50]} Nxd2 {[%emt 0:02:47]} 8.
Nxd2 {[%emt 0:00:05]} O-O {[%emt 0:00:21]} 9. Bd3 {[%emt 0:04:24]} Qg5 {
[%emt 0:06:20]} 10. O-O {[%emt 0:05:55]} dxc4 {[%emt 0:10:25]} 11. Nxc4 {
[%emt 0:23:37]} Bxc3 {[%emt 0:00:35]} 12. bxc3 {[%emt 0:00:08]} b5 {[%emt 0:00:
00]} 13. Qc2 {[%emt 0:09:25]} bxc4 {[%emt 0:01:46]} 14. Bxh7+ {[%emt 0:00:02]}
Kh8 {[%emt 0:00:55]} 15. f4 {[%emt 0:00:07]} Qe7 {[%emt 0:02:49]} 16. Rf3 {
[%emt 0:13:24]} g6 {[%emt 0:04:22]} 17. Bxg6 {[%emt 0:03:05]} fxg6 {[%emt 0:00:
00]} 18. Qxg6 {[%emt 0:00:05]} Rf7 {[%emt 0:01:03]} 19. Rh3+ {[%emt 0:00:23]}
Rh7 {[%emt 0:01:19]} 20. Rxh7+ {[%emt 0:00:08]} Qxh7 {[%emt 0:01:26]} 21. Qe8+
{[%emt 0:00:01]} Qg8 {[%emt 0:02:15]} 22. Qxc6 {[%emt 0:00:05]} Rb8 {[%emt 0:
00:00]} 23. Qe4 {[%emt 0:16:52]} Rb2 {[%emt 0:03:43]} 24. Rb1 {[%emt 0:00:15]}
Rxb1+ {[%emt 0:01:41]} 25. Qxb1 {[%emt 0:00:05]} Ba6 {[%emt 0:09:52]} 26. Qe4 {
[%emt 0:00:26]} Qg4 {[%emt 0:05:59]} 27. Qf3 {[%emt 0:04:20]} Qxf3 {[%emt 0:00:
00]} 28. gxf3 {[%emt 0:00:01]} Kg7 {[%emt 0:00:45]} 29. Kf2 {[%emt 0:01:11]}
Kg6 {[%emt 0:02:53]} 30. e4 {[%emt 0:03:48]} Bb7 {[%emt 0:01:10]} 31. Kg3 {
[%emt 0:01:54]} Kh5 {[%emt 0:00:27]} 32. f5 {[%emt 0:03:32]} exf5 {[%emt 0:00:
00]} 33. Kf4 {[%emt 0:00:07]} fxe4 {[%emt 0:01:07]} 34. fxe4 {[%emt 0:00:01]}
Kh4 {[%emt 0:02:52]} 35. e5 {[%emt 0:00:11]} Kh3 {[%emt 0:01:15]} 36. e6 {
[%emt 0:01:26]} Bc6 {[%emt 0:01:23]} 37. Ke5 {[%emt 0:01:41]} Kxh2 {[%emt 0:00:
00]} 38. d5 {[%emt 0:00:15]} Ba4 {[%emt 0:00:08]} 39. Kd4 {[%emt 0:00:35]} Bb5
{[%emt 0:01:44]} 40. Kc5 {[%emt 0:01:14]} a6 {[%emt 0:02:25]} 41. a4 {[%emt 0:
00:00]} Bxa4 {[%emt 0:00:32]} 42. Kxc4 {[%emt 0:00:01]} Kg3 {[%emt 0:03:17]}
43. Kc5 {[%emt 0:04:41]} Kf4 {[%emt 0:01:28]} 44. d6 {[%emt 0:00:24]} cxd6+ {
[%emt 0:00:56]} 45. Kxd6 {[%emt 0:00:02]} Be8 {[%emt 0:01:10]} 46. c4 {[%emt 0:
00:00]} a5 {[%emt 0:02:32]} 47. c5 {[%emt 0:00:50]} Kf5 {[%emt 0:01:06]} 48. c6
{[%emt 0:00:39]} Bxc6 {[%emt 0:01:00]} 49. Kxc6 {[%emt 0:00:08]} Kxe6 {[%emt 0:
00:00]} 50. Kb5 {[%emt 0:00:03]} Ke5 {[%emt 0:00:57]} 1/2-1/2

[Event "44th Chess Olympiad Open 2022"]
[Site "Chennai"]
[Date "2022.08.01"]
[Round "4.87"]
[White "Dalliah, Joseph"]
[Black "Escalante Ramirez, Brian Sebasti"]
[Result "1/2-1/2"]
[WhiteElo "1920"]
[BlackElo "2496"]
[Annotator "TA"]
[PlyCount "99"]
[EventDate "2022.??.??"]
[TimeControl "60"]

{[%evp 14,99,27,25,30,0,-6,-56,-14,-87,-67,-143,-129,-181,-172,-175,-183,-175,
-171,-188,-170,-172,-174,-193,-195,-201,-195,-200,-214,-220,-222,-285,-256,
-266,-205,-214,-191,-197,0,-210,-208,-222,-188,-217,-179,-243,-247,-290,-249,
-330,-345,-339,-341,-308,-169,-334,-206,-580,-96,-90,-74,-94,-95,-80,-74,-74,
-74,-87,-87,-95,-74,-74,-74,-74,-74,-74,0,-6,-6,-67,0,0,0,0,0,0,0,0]} 1. d4 {
[%emt 0:00:04]} d5 {[%emt 0:00:14]} 2. c4 {[%emt 0:00:07]} e6 {[%emt 0:00:23]}
3. Nc3 {[%emt 0:00:19]} Nf6 {[%emt 0:00:15]} 4. Bf4 {[%emt 0:00:32]} c6 {
[%emt 0:01:20]} 5. e3 {[%emt 0:00:25]} Nbd7 {[%emt 0:00:38]} 6. Nf3 {[%emt 0:
00:00]} Be7 {[%emt 0:02:03]} 7. Be2 {[%emt 0:00:17]} O-O {[%emt 0:00:42]} 8.
O-O {[%emt 0:00:08]} Nh5 {[%emt 0:02:18] D37: Queen's Gambit Declined: 5 Bf4.}
9. Bg3 {[%emt 0:00:31]} Nxg3 {[%emt 0:00:40]} 10. fxg3 {[%emt 0:00:13]} (10.
hxg3 $11 b6 11. Rc1) 10... Bf6 {[%emt 0:02:06] [#] Black is slightly better.}
11. c5 $146 {[%emt 0:00:44]} (11. Qc2 $11) ({Predecessor:} 11. b4 Re8 12. e4
dxe4 13. Nxe4 Be7 14. c5 b6 15. Rb1 Nf6 16. Nc3 Ng4 17. Qd2 e5 18. dxe5 Bf5 19.
b5 {1-0 (19) Brewer Hoyos,J-Gonzalez Miranda,A (1354) Tenerife 2018}) 11... e5
$17 {[%emt 0:02:16]} 12. dxe5 {[%emt 0:07:18]} (12. Qd2 $15) 12... Nxe5 {
[%emt 0:00:57]} 13. Qc2 {[%emt 0:03:04]} (13. Nxe5 $17 Bxe5 14. Bd3) 13... Ng4
$19 {[%emt 0:06:46]} 14. Nd1 {[%emt 0:02:11]} Re8 {[%emt 0:02:40]} 15. Bd3 {
[%emt 0:01:29]} g6 {[%emt 0:01:44]} ({Not} 15... Nxe3 16. Nxe3 Rxe3 17. Bxh7+
Kh8 18. Bd3 $17) 16. Re1 {[%emt 0:03:17]} Ne5 {[%emt 0:03:23]} 17. Nxe5 {
[%emt 0:01:14]} Rxe5 {[%emt 0:00:41]} 18. Rb1 {[%emt 0:04:53]} Qe7 {[%emt 0:00:
00]} 19. b4 {[%emt 0:02:09]} Bg4 {[%emt 0:03:19]} 20. Qf2 {[%emt 0:03:17]} Re8
{[%emt 0:02:18]} 21. Rf1 {[%emt 0:14:05]} Bg5 {[%emt 0:01:23] This bishop pair
is nice.} 22. h4 {[%emt 0:03:10]} Bh6 {[%emt 0:06:49]} ({But not} 22... Bxe3 $2
23. Nxe3 Rxe3 24. Qf4 $19) 23. Kh2 {[%emt 0:00:11]} Bxe3 {[%emt 0:02:42]} 24.
Nxe3 {[%emt 0:00:21]} Rxe3 {[%emt 0:00:03]} 25. Rb3 {[%emt 0:01:25][%cal Yd3g6]
} Be2 $2 {[%emt 0:02:47] [#]} (25... d4 $19 26. Bc4 Bf5) 26. Bxe2 $2 {[%emt 0:
00:00]} (26. Bxg6 $1 $11 {and White is okay.} hxg6 27. Rxe3 Qxe3 28. Qxf7+ Kh8
29. Qxg6 Bxf1 30. Qf6+ Kh7 31. Qf7+ Kh6 32. Qf6+ Kh7 33. Qf7+ Kh6 34. Qf6+ Kh7)
26... Rxe2 {[%emt 0:00:24]} 27. Qf3 {[%emt 0:00:30]} Rxa2 {[%emt 0:01:07]} 28.
b5 {[%emt 0:01:12]} Re2 {[%emt 0:01:08]} 29. bxc6 {[%emt 0:00:36]} (29. Ra3
$142) 29... bxc6 {[%emt 0:00:02]} 30. Rfb1 {[%emt 0:01:18]} Re3 {[%emt 0:02:36]
} 31. Qf4 {[%emt 0:03:47]} Rxb3 {[%emt 0:00:36]} 32. Rxb3 {[%emt 0:00:11]} Qxc5
{[%emt 0:00:19] Endgame KQR-KQR} 33. Rb7 {[%emt 0:00:13]} Rf8 {[%emt 0:00:13]}
(33... Qf8 $142 {Strongly threatening ...c5.} 34. Rxa7 c5) 34. Qa4 $2 {[%emt 0:
02:33]} (34. Qf6 {was worth a try.}) 34... d4 {[%emt 0:01:25] [#] And now ...
Rd8 would win.} 35. Rxa7 $2 {[%emt 0:02:18]} (35. Rd7) 35... d3 $2 {[%emt 0:01:
49]} (35... Rd8 $19 36. Ra8 Rxa8 37. Qxa8+ Kg7) 36. Rd7 $17 {[%emt 0:00:11]}
Qb5 {[%emt 0:01:23]} (36... Qc2 {looks sharper.} 37. Qf4 c5 38. h5 d2) 37. Qd1
{[%emt 0:00:55]} Rc8 {[%emt 0:01:17]} 38. Rxd3 {[%emt 0:00:20]} h5 {[%emt 0:00:
40]} 39. Rd7 {[%emt 0:03:06][%cal Yd7f7]} Qf5 {[%emt 0:00:37]} 40. Rd4 {
[%emt 0:03:07]} c5 {[%emt 0:02:53]} 41. Rc4 {[%emt 0:34:37]} Qe6 {[%emt 0:33:
11]} 42. Qc1 {[%emt 0:02:10]} Qd5 {[%emt 0:00:38]} 43. Qc2 {[%emt 0:00:00]} Rc6
{[%emt 0:01:34]} 44. Qc3 {[%emt 0:00:06]} f6 {[%emt 0:01:41]} (44... Kh7 $17)
45. Qc2 {[%emt 0:00:59]} Kg7 {[%emt 0:00:06]} 46. Qa4 {[%emt 0:00:00]} ({
Better is} 46. Ra4 $1 $11) 46... g5 {[%emt 0:01:59]} (46... Rc7 $15) 47. hxg5
$11 {[%emt 0:02:44] The position is equal.} fxg5 {[%emt 0:00:28]} 48. Qa7+ {
[%emt 0:05:16]} Kg6 {[%emt 0:00:18]} 49. Qa4 {[%emt 0:00:39]} Re6 {[%emt 0:01:
02]} 50. Qc2+ {[%emt 0:00:14] White happily takes the draw. Weighted Error
Value: White=0.36/Black=0.44} 1/2-1/2

[Event "44th Chess Olympiad Open 2022"]
[Site "Chennai"]
[Date "2022.08.01"]
[Round "4.87"]
[White "Enemchukwu Chinedu Benjamin"]
[Black "Bah, Ebrima"]
[Result "1-0"]
[WhiteElo "1889"]
[BlackElo "2078"]
[Annotator "NA RC"]
[PlyCount "83"]
[EventDate "2022.??.??"]
[TimeControl "60"]

1. e4 {[%emt 0:00:04]} e6 {[%emt 0:00:12]} 2. d4 {[%emt 0:00:06]} d5 {[%emt 0:
00:00]} 3. Nc3 {[%emt 0:00:07]} dxe4 {[%emt 0:00:57]} 4. f3 {[%emt 0:00:08]}
exf3 {[%emt 0:01:04]} 5. Nxf3 {[%emt 0:00:09]} Nf6 {[%emt 0:00:27]} 6. Bd3 {
[%emt 0:00:08]} c5 {[%emt 0:00:45]} 7. dxc5 {[%emt 0:01:17]} Bxc5 {[%emt 0:00:
00]} 8. Qe2 {[%emt 0:00:14]} Nc6 {[%emt 0:01:16]} 9. Bg5 {[%emt 0:00:32]} h6 {
[%emt 0:01:06]} 10. Bh4 {[%emt 0:00:55]} g5 {[%emt 0:00:46]} 11. Bg3 {[%emt 0:
00:00]} Bd6 {[%emt 0:05:48]} 12. Bxd6 {[%emt 0:02:59]} Qxd6 {[%emt 0:00:14]}
13. O-O-O {[%emt 0:00:02]} a6 {[%emt 0:00:43]} 14. Kb1 {[%emt 0:00:16]} Qb4 {
[%emt 0:02:46]} 15. Rhf1 {[%emt 0:00:35]} Qe7 {[%emt 0:02:08]} 16. Ne5 {
[%emt 0:01:27]} O-O {[%emt 0:08:48]} 17. h4 {[%emt 0:02:24]} Nxe5 {[%emt 0:00:
00]} 18. Qxe5 {[%emt 0:00:11]} Ng4 {[%emt 0:00:58]} 19. Qe2 {[%emt 0:01:33]}
Nf6 {[%emt 0:05:02]} 20. hxg5 {[%emt 0:00:23]} hxg5 {[%emt 0:00:01]} 21. Rh1 {
[%emt 0:01:42]} Kg7 {[%emt 0:02:08]} 22. Qe3 {[%emt 0:00:52]} Rg8 {[%emt 0:00:
00]} 23. Qxg5+ {[%emt 0:01:49]} Kf8 {[%emt 0:00:11]} 24. Qh6+ {[%emt 0:00:32]}
Ke8 {[%emt 0:01:11]} 25. Rhf1 {[%emt 0:00:31]} Ng4 {[%emt 0:00:51]} 26. Qh7 {
[%emt 0:00:49]} Qf8 {[%emt 0:02:06]} 27. Ne4 {[%emt 0:01:30]} Ke7 {[%emt 0:00:
00]} 28. Qh4+ {[%emt 0:06:12]} f6 {[%emt 0:00:28]} 29. Be2 {[%emt 0:00:39]} Qh6
{[%emt 0:01:21]} 30. Qg3 {[%emt 0:00:47]} Qh2 {[%emt 0:01:06]} 31. Qa3+ {
[%emt 0:00:34]} Kf7 {[%emt 0:00:56]} 32. Nd6+ {[%emt 0:00:29]} Kg6 {[%emt 0:00:
00]} 33. Bxg4 {[%emt 0:00:19]} f5 {[%emt 0:01:00]} 34. Be2 {[%emt 0:01:57]} b5
{[%emt 0:03:03]} 35. Rh1 {[%emt 0:00:40]} Qe5 {[%emt 0:00:54]} 36. Rh6+ {
[%emt 0:02:50]} Kg7 {[%emt 0:00:27]} 37. Qf3 {[%emt 0:00:38]} Ra7 {[%emt 0:00:
00]} 38. Qh5 {[%emt 0:00:24]} Re7 {[%emt 0:02:17]} 39. Rh7+ {[%emt 0:00:56]}
Kf6 {[%emt 0:03:04]} 40. Rxe7 {[%emt 0:00:48]} Rf8 {[%emt 0:05:10]} 41. Qh4+ {
[%emt 0:30:29]} Kg6 {[%emt 0:30:34]} 42. Bh5+ {[%emt 0:01:36]} 1-0